bitfinex/quotes_SOLUSD_20250226
["timestamp","ask_amount","ask_price","bid_price","bid_amount"]
[1740555599738,81.1,140.16,140.06,7.16]
[1740555600054,81.1,140.18,140.07,20.52022886]
[1740555600654,81.1,140.18,140.1,20.0]
[1740555600855,7.1322,140.21,140.11,7.16]
[1740555601057,81.1,140.2,140.12,7.1367]
[1740555602347,88.233,140.2,140.11,7.1372]
[1740555604148,88.2333,140.19,140.11,7.1372]
[1740555604649,81.1,140.18,140.08,6.5013]
[1740555604844,81.1,140.17,140.08,6.5013]
[1740555605646,81.1,140.16,140.09,7.12]
[1740555606245,88.2351,140.16,140.09,7.12]
[1740555607078,88.2351,140.16,140.09,14.2581]
[1740555608968,88.2351,140.16,140.09,7.12]
[1740555609355,88.2351,140.16,140.09,14.2581]
[1740555609967,88.2351,140.16,140.08,49.17631832]
[1740555610370,81.1,140.15,140.08,6.5013]
[1740555610669,81.1,140.14,140.08,6.5013]
[1740555611046,7.1362,140.13,140.08,6.5013]
[1740555612545,7.1362,140.13,140.06,7.1397]
[1740555612756,81.1,140.12,140.04,49.14331832]
[1740555612960,81.1,140.11,140.04,13.609]
[1740555613467,88.2362,140.13,140.04,74.93366718]
[1740555613647,81.1,140.13,140.05,7.06]
[1740555614459,88.2352,140.15,140.08,20.0]
[1740555615079,88.2352,140.15,140.09,7.1382]
[1740555615459,88.2346,140.17,140.09,7.1382]
[1740555615770,88.2346,140.17,140.1,6.4419]
[1740555615949,81.1,140.17,140.11,1.5025]
[1740555616156,81.1,140.21,140.11,44.17751832]
[1740555616479,0.063,140.25,140.2,1.6263]
[1740555616766,0.063,140.25,140.21,27.14]
[1740555616971,0.063,140.25,140.24,20.0]
[1740555617788,0.063,140.25,140.22,6.4129]
[1740555621383,0.063,140.25,140.24,20.0]
[1740555621988,0.063,140.25,140.24,62.67501832]
[1740555624183,0.063,140.25,140.24,69.80561832]
[1740555624482,0.063,140.25,140.24,62.67501832]
[1740555624874,0.063,140.25,140.24,20.0]
[1740555626489,0.063,140.25,140.22,142.6129]
[1740555626787,0.063,140.25,140.22,149.7443]
[1740555626965,0.063,140.25,140.22,56.21931832]
[1740555627672,0.063,140.25,140.24,20.0]
[1740555628289,0.063,140.25,140.22,56.21931832]
[1740555629066,0.063,140.25,140.23,18.90062886]
[1740555629271,0.063,140.25,140.24,7.1306]
[1740555630493,0.063,140.25,140.22,56.21951832]
[1740555630998,0.063,140.25,140.22,49.08791832]
[1740555631493,0.063,140.25,140.22,42.67501832]
[1740555631792,0.063,140.25,140.19,42.67501832]
[1740555632291,0.063,140.25,140.18,13.6698]
[1740555632676,0.063,140.25,140.18,7.04]
[1740555633303,81.1,140.24,140.12,7.1363]
[1740555633474,7.083,140.25,140.12,42.67501832]
[1740555633475,82.6636,140.23,140.12,42.67501832]
[1740555633798,81.1,140.22,140.12,42.67501832]
[1740555634497,7.1321,140.21,140.12,42.67501832]
[1740555634795,81.1,140.2,140.12,49.81151832]
[1740555636273,81.1,140.2,140.12,42.67501832]
[1740555636274,88.2327,140.2,140.12,42.67501832]
[1740555637594,88.2327,140.2,140.12,49.81151832]
[1740555638089,94.787,140.2,140.12,42.67501832]
[1740555638393,101.807,140.2,140.12,42.67501832]
[1740555639789,81.1,140.19,140.11,7.1371]
[1740555639993,81.1,140.22,140.11,186.01211832]
[1740555640172,1.5636,140.23,140.15,20.0]
[1740555640376,0.063,140.25,140.16,7.02]
[1740555640674,0.063,140.25,140.16,49.69501832]
[1740555641673,0.063,140.25,140.16,55.97341832]
[1740555641876,0.063,140.25,140.17,7.1341]
[1740555642670,0.063,140.25,140.17,24.9695]
[1740555643398,0.063,140.25,140.17,203.84451832]
[1740555644095,0.063,140.25,140.19,24.966]
[1740555644297,0.063,140.25,140.19,67.64101832]
[1740555644900,0.063,140.25,140.19,203.84101832]
[1740555645681,0.063,140.25,140.21,24.9624]
[1740555646001,0.063,140.25,140.22,7.02]
[1740555646188,0.063,140.25,140.22,49.69501832]
[1740555647999,0.063,140.25,140.23,7.1311]
[1740555651683,0.063,140.25,140.23,49.80611832]
[1740555652080,0.063,140.25,140.23,186.00611832]
[1740555653816,0.063,140.25,140.24,26.03122886]
[1740555654311,0.063,140.25,140.24,13.99018]
[1740555655483,0.063,140.25,140.24,13.7392]
[1740555656602,0.063,140.25,140.24,7.1306]
[1740555657600,0.063,140.25,140.23,49.80601832]
[1740555658488,0.063,140.25,140.2,186.00711832]
[1740555658829,0.063,140.25,140.2,178.87501832]
[1740555659686,0.063,140.25,140.18,6.92]
[1740555659687,6.6971,140.25,140.18,6.92]
[1740555659889,81.1,140.24,140.18,6.92]
[1740555660505,81.1,140.24,140.17,42.67501832]
[1740555660711,81.1,140.23,140.15,178.87501832]
[1740555660908,81.1,140.23,140.15,49.59501832]
[1740555661490,81.1,140.23,140.15,42.67501832]
[1740555661815,88.2316,140.22,140.13,42.67501832]
[1740555662410,88.2309,140.24,140.13,179.12599832]
[1740555662591,88.2309,140.24,140.13,178.87501832]
[1740555662791,81.1,140.23,140.13,42.67501832]
[1740555663832,81.1,140.23,140.14,7.1357]
[1740555664338,87.7971,140.25,140.15,0.25098]
[1740555664492,87.7971,140.25,140.17,20.0]
[1740555664691,87.7971,140.25,140.18,6.96]
[1740555665155,81.163,140.25,140.18,6.96]
[1740555665948,81.163,140.25,140.18,14.0936]
[1740555666850,0.063,140.25,140.18,74.60281832]
[1740555669330,0.063,140.25,140.22,20.0]
[1740555669559,0.063,140.25,140.22,62.67501832]
[1740555669740,0.063,140.25,140.23,6.96]
[1740555670922,0.063,140.25,140.24,7.1306]
[1740555671649,0.0001,140.25,140.24,212.29793026]
[1740555671826,0.0001,140.25,140.24,211.22864718]
[1740555672253,0.0001,140.25,140.24,254.16864718]
[1740555672625,0.0001,140.25,140.24,192.57899832]
[1740555673453,0.0001,140.25,140.24,192.32801832]
[1740555673832,0.0001,140.25,140.24,49.80561832]
[1740555674157,0.0001,140.25,140.24,6.96]
[1740555674525,0.0001,140.25,140.19,42.67501832]
[1740555675055,0.0001,140.25,140.19,49.80801832]
[1740555676435,0.0001,140.25,140.19,42.67501832]
[1740555676637,0.0001,140.25,140.18,6.96]
[1740555676638,81.1,140.24,140.18,6.96]
[1740555677939,81.1,140.24,140.18,14.0935]
[1740555678149,81.1,140.24,140.17,7.134]
[1740555678356,88.2314,140.23,140.15,14.0752]
[1740555678866,1.592,140.21,140.15,14.0752]
[1740555679157,82.692,140.21,140.15,14.0752]
[1740555681466,81.1,140.21,140.15,14.0752]
[1740555682554,87.2321,140.21,140.12,42.67501832]
[1740555682745,87.2321,140.21,140.13,7.1362]
[1740555682746,81.1,140.2,140.13,7.1362]
[1740555683471,80.34,140.2,140.13,7.1362]
[1740555683669,87.4728,140.2,140.13,7.1362]
[1740555683899,80.34,140.2,140.13,7.1362]
[1740555685974,1.522,140.23,140.16,20.0]
[1740555686156,1.522,140.23,140.17,6.92]
[1740555687459,6.5114,140.24,140.17,6.92]
[1740555687871,6.5114,140.24,140.17,49.59501832]
[1740555688166,0.0001,140.25,140.18,7.1336]
[1740555688972,0.0001,140.25,140.18,24.9678]
[1740555689766,0.0001,140.25,140.18,7.1336]
[1740555692450,0.0001,140.25,140.18,7.1636]
[1740555693167,0.0001,140.25,140.18,24.9978]
[1740555693473,0.0001,140.25,140.18,67.67281832]
[1740555699022,0.0001,140.25,140.22,20.0]
[1740555699211,0.0001,140.25,140.23,6.84]
[1740555699974,0.0001,140.25,140.24,7.1306]
[1740555702180,0.0001,140.25,140.24,49.80561832]
[1740555703683,0.0001,140.25,140.24,42.67501832]
[1740555703979,0.0001,140.25,140.24,49.80561832]
[1740555704479,0.0001,140.25,140.24,42.67501832]
[1740555704867,0.0001,140.25,140.2,13.9524]
[1740555707683,1.6605,140.23,140.18,0.03]
[1740555707885,6.2066,140.19,140.07,136.2]
[1740555708068,7.8671,140.15,140.06,0.03]
[1740555708580,1.0,140.13,140.06,0.03]
[1740555708786,1.0,140.1,140.05,9.42012437]
[1740555708991,20.0,140.06,140.05,7.75352437]
[1740555709287,28.06,140.06,140.05,7.75352437]
[1740555709598,6.4402,140.09,140.05,7.75352437]
[1740555710080,1.0,140.07,140.04,0.03]
[1740555710390,7.06,140.07,140.04,0.03]
[1740555711163,6.4402,140.09,140.04,0.03]
[1740555711164,18.64964886,140.08,140.04,0.03]
[1740555711476,6.4402,140.09,140.04,0.03]
[1740555713285,80.34,140.08,140.04,0.03]
[1740555713775,87.4788,140.08,140.04,0.03]
[1740555714290,88.4788,140.08,140.02,0.03]
[1740555714588,80.34,140.07,140.02,0.03]
[1740555714974,80.34,140.07,140.03,0.03]
[1740555715566,39.64964886,140.04,140.03,0.03]
[1740555715785,26.79044886,140.04,140.03,0.03]
[1740555716386,1.0,140.03,140.02,0.03]
[1740555716576,26.79044886,140.04,140.02,0.03]
[1740555716888,26.79044886,140.04,140.0,13.677]
[1740555717288,1.0,140.02,140.0,12.0104]
[1740555717490,7.0,140.01,140.0,12.0104]
[1740555718296,32.79194886,140.01,140.0,12.0104]
[1740555718479,7.0,140.01,140.0,12.0104]
[1740555718982,25.64964886,140.01,140.0,12.0104]
[1740555719185,35.04292886,140.01,140.0,12.0104]
[1740555719374,1.0,140.0,139.91,0.08672506]
[1740555719575,2.0,140.0,139.91,0.08672506]
[1740555719890,8.1436,139.99,139.91,0.08672506]
[1740555720070,81.1,139.99,139.91,0.08672506]
[1740555720672,81.1,140.0,139.92,1.5618]
[1740555721495,81.1,139.99,139.92,1.5618]
[1740555722301,81.1,139.99,139.92,91.6083]
[1740555722599,81.1,140.03,139.92,91.6083]
[1740555722796,81.1,140.02,139.93,7.0]
[1740555723182,81.1,140.02,139.93,89.9]
[1740555723499,0.26668964,140.04,139.96,20.0]
[1740555723798,81.1,140.05,139.97,7.1443]
[1740555724098,81.1,140.05,139.97,114.3852]
[1740555724309,81.36668964,140.09,139.97,250.5852]
[1740555724500,81.1,140.08,139.97,250.5852]
[1740555724884,0.26668964,140.09,140.0,20.0]
[1740555725091,81.1,140.1,139.97,24.5052]
[1740555725284,81.1,140.09,139.97,24.5052]
[1740555725600,81.36668964,140.12,140.0,6.2]
[1740555725810,81.1,140.11,140.01,7.0]
[1740555725980,81.1,140.11,140.02,7.1418]
[1740555726305,0.26668964,140.12,140.02,7.1418]
[1740555726512,0.26668964,140.12,140.02,24.9963]
[1740555727188,0.063,140.09,140.02,24.9963]
[1740555728402,0.063,140.09,140.05,20.0]
[1740555728701,0.063,140.09,140.07,1.5535]
[1740555728999,0.063,140.09,140.08,20.0]
[1740555729375,0.063,140.09,140.07,220.6535]
[1740555729782,0.063,140.09,140.07,1.5535]
[1740555731301,0.063,140.09,140.07,8.6926]
[1740555732103,0.063,140.09,140.08,6.0681]
[1740555732591,7.1337,140.18,140.08,6.0681]
[1740555733003,87.5242,140.2,140.08,6.0681]
[1740555733183,94.6573,140.2,140.08,6.0681]
[1740555733385,101.00062886,140.19,140.08,6.0681]
[1740555733593,1.0,140.18,140.08,6.0681]
[1740555733803,81.1,140.17,140.07,8.6926]
[1740555733978,7.1352,140.15,140.07,1.5535]
[1740555734195,81.1,140.14,140.07,1.5535]
[1740555734830,81.1,140.13,140.07,1.5535]
[1740555736387,81.1,140.13,140.07,8.6926]
[1740555737007,81.1,140.17,140.07,8.6926]
[1740555737211,95.1933,140.19,140.08,6.98]
[1740555737716,81.1,140.19,140.08,6.98]
[1740555737882,88.2332,140.19,140.08,6.98]
[1740555738087,88.2332,140.19,140.09,7.1382]
[1740555738295,38.7463385,140.22,140.11,6.4019]
[1740555738296,81.1,140.21,140.11,6.4019]
[1740555738504,81.1,140.21,140.11,89.3019]
[1740555738889,20.7565,140.23,140.11,89.3019]
[1740555738890,81.1,140.2,140.11,89.3019]
[1740555739484,0.063,140.13,140.11,89.3019]
[1740555739813,81.1,140.2,140.11,225.5019]
[1740555740320,81.1,140.2,140.12,24.9785]
[1740555740619,81.1,140.22,140.14,1.5471]
[1740555740818,81.1,140.22,140.14,84.4471]
[1740555741320,0.063,140.24,140.15,0.25098]
[1740555741488,0.063,140.24,140.19,6.0918]
[1740555741686,0.063,140.24,140.21,1.5471]
[1740555742491,0.063,140.24,140.21,8.6788]
[1740555744111,0.063,140.24,140.21,1.5471]
[1740555749202,0.063,140.24,140.19,13.0318]
[1740555750698,0.063,140.24,140.19,20.1649]
[1740555751704,0.063,140.24,140.19,103.0649]
[1740555751902,0.063,140.24,140.22,20.0]
[1740555752097,0.063,140.24,140.23,1.5912]
[1740555753001,0.063,140.24,140.23,8.7223]
[1740555753409,0.063,140.28,140.23,8.7223]
[1740555753603,0.063,140.28,140.24,6.92]
[1740555754399,0.063,140.28,140.25,7.1301]
[1740555755926,0.063,140.28,140.24,6.92]
[1740555756126,0.063,140.28,140.24,14.0505]
[1740555756931,0.063,140.28,140.23,91.6222]
[1740555757122,0.063,140.28,140.23,98.5222]
[1740555757327,0.063,140.28,140.23,1.5912]
[1740555759925,81.1,140.27,140.22,6.9]
[1740555760437,81.1,140.26,140.22,6.9]
[1740555760914,81.1,140.26,140.22,14.0315]
[1740555762918,0.063,140.28,140.22,96.9315]
[1740555763310,0.063,140.28,140.25,20.0]
[1740555763916,0.063,140.28,140.26,7.1296]
[1740555766114,0.063,140.28,140.26,8.653]
[1740555767632,0.063,140.28,140.24,6.84]
[1740555767836,81.1,140.27,140.24,6.84]
[1740555768041,81.1,140.26,140.21,1.5952]
[1740555768354,81.1,140.25,140.18,13.9736]
[1740555768713,81.1,140.25,140.18,7.1336]
[1740555768930,88.2301,140.25,140.18,7.1336]
[1740555770156,81.1,140.25,140.18,7.1336]
[1740555771647,13.4228,140.28,140.18,24.9678]
[1740555771949,13.6914,140.28,140.21,20.0]
[1740555772158,13.6914,140.28,140.21,26.84]
[1740555773033,0.063,140.28,140.22,7.1316]
[1740555774822,0.063,140.28,140.22,24.9607]
[1740555776613,0.063,140.28,140.22,7.1316]
[1740555777527,0.063,140.28,140.22,7.1616]
[1740555777740,7.1915,140.28,140.22,7.1616]
[1740555778643,18.64964886,140.26,140.22,0.03]
[1740555779859,7.1301,140.25,140.22,0.03]
[1740555780042,7.1296,140.26,140.22,0.03]
[1740555780865,24.9536,140.26,140.22,0.03]
[1740555781855,24.9536,140.26,140.19,6.82]
[1740555782431,7.1296,140.26,140.19,13.9531]
[1740555785865,7.1296,140.26,140.19,13.8560911]
[1740555786466,81.1,140.27,140.19,13.8560911]
[1740555786642,88.2291,140.27,140.19,13.8560911]
[1740555786840,81.1,140.27,140.2,6.89528]
[1740555788057,0.063,140.28,140.2,89.79528]
[1740555788247,0.063,140.28,140.2,93.1088813]
[1740555788643,0.063,140.28,140.21,7.1321]
[1740555790437,0.063,140.28,140.21,7.1621]
[1740555791371,0.063,140.28,140.21,90.0621]
[1740555791568,0.063,140.28,140.21,107.8924]
[1740555791873,0.063,140.28,140.22,1.6218]
[1740555792368,0.063,140.28,140.23,7.1311]
[1740555792565,0.063,140.28,140.24,6.8]
[1740555793474,0.063,140.28,140.25,7.1301]
[1740555794971,0.063,140.28,140.25,10.66338208]
[1740555797756,80.75,140.32,140.25,10.66338208]
[1740555799364,80.75,140.32,140.25,28.48868208]
[1740555801176,80.75,140.32,140.27,7.1291]
[1740555802187,80.813,140.32,140.27,7.1291]
[1740555804560,0.063,140.32,140.27,107.8518]
[1740555806487,0.063,140.32,140.27,100.7227]
[1740555806677,0.063,140.32,140.28,7.1285]
[1740555806978,0.063,140.32,140.29,6.74]
[1740555807855,0.063,140.32,140.3,3.60032135]
[1740555808464,0.063,140.32,140.31,7.127]
[1740555809581,0.063,140.32,140.27,7.1291]
[1740555811563,0.063,140.32,140.27,10.65738283]
[1740555812969,18.71264886,140.32,140.26,1.5332]
[1740555813280,80.75,140.31,140.25,0.03]
[1740555813480,0.25098,140.29,140.25,0.03]
[1740555813657,18.64964886,140.27,140.25,0.03]
[1740555813858,87.07998,140.26,140.25,0.03]
[1740555814092,6.32998,140.26,140.25,0.03]
[1740555814460,6.079,140.26,140.25,0.03]
[1740555814975,25.77924886,140.26,140.25,0.03]
[1740555815677,7.129,140.28,140.25,0.03]
[1740555815884,81.1,140.28,140.25,0.03]
[1740555816185,81.1,140.28,140.22,12.7417]
[1740555816387,81.1,140.31,140.22,12.7417]
[1740555816555,81.1,140.3,140.23,1.6546]
[1740555816761,81.1,140.3,140.24,7.1306]
[1740555818075,0.063,140.32,140.24,7.1306]
[1740555820291,0.063,140.32,140.24,90.0306]
[1740555820471,0.063,140.32,140.25,0.12549]
[1740555820665,0.063,140.32,140.25,219.22549]
[1740555820974,0.063,140.32,140.25,222.74794856]
[1740555821181,0.063,140.32,140.28,8.1663]
[1740555821385,0.063,140.32,140.29,6.72]
[1740555822365,0.063,140.32,140.3,7.1275]
[1740555822768,0.063,140.32,140.29,6.72]
[1740555823193,0.063,140.32,140.29,10.26962313]
[1740555824169,0.063,140.32,140.28,8.1663]
[1740555828594,0.063,140.32,140.28,15.2947]
[1740555828982,0.063,140.32,140.29,3.57494936]
[1740555829799,0.063,140.32,140.29,86.47494936]
[1740555830009,0.063,140.32,140.29,82.9]
[1740555834601,0.063,140.32,140.29,90.0278]
[1740555835275,0.063,140.32,140.3,0.12549]
[1740555835603,0.063,140.32,140.31,6.68]
[1740555842499,0.063,140.32,140.31,13.807]
[1740555843189,0.063,140.34,140.32,0.12549]
[1740555844193,0.063,140.34,140.33,20.0]
[1740555844393,0.063,140.34,140.33,27.126]
[1740555846594,0.063,140.38,140.34,1.6227]
[1740555846789,0.063,140.38,140.35,6.27899]
[1740555846995,0.0001,140.39,140.37,18.90062886]
[1740555847221,0.0001,140.39,140.37,238.00062886]
[1740555847711,0.0001,140.39,140.38,7.24899]
[1740555848101,0.0001,140.4,140.39,0.12549]
[1740555848515,0.0001,140.4,140.39,18.90062886]
[1740555848691,0.0001,140.4,140.39,103.42332886]
[1740555848893,0.0001,140.4,140.39,220.84819]
[1740555849200,0.0001,140.4,140.39,239.62332886]
[1740555850016,0.0001,140.4,140.39,246.74632886]
[1740555855836,0.0001,140.4,140.39,227.97119]
[1740555856933,0.0001,140.4,140.39,227.8457]
[1740555857102,0.0001,140.4,140.39,8.7457]
[1740555857633,0.0001,140.4,140.39,8.87119]
[1740555858130,0.0001,140.4,140.39,110.54632886]
[1740555862733,0.0001,140.4,140.39,246.74632886]
[1740555863711,0.0001,140.4,140.39,228.09668]
[1740555864047,0.0001,140.4,140.38,3.6370816]
[1740555864601,0.0001,140.4,140.38,0.063]
[1740555865097,0.0001,140.4,140.39,0.12549]
[1740555865301,0.0001,140.4,140.39,0.25098]
[1740555866828,0.0001,140.4,140.39,50.29398]
[1740555867131,0.0001,140.4,140.38,0.063]
[1740555868745,81.1001,140.4,140.38,0.063]
[1740555869044,88.2229,140.4,140.38,0.063]
[1740555870049,100.00062886,140.39,140.38,0.063]
[1740555870236,107.12362886,140.39,140.38,0.063]
[1740555870623,88.223,140.39,140.38,0.063]
[1740555873522,81.1,140.39,140.38,0.063]
[1740555874632,88.223,140.39,140.38,0.063]
[1740555875127,7.123,140.39,140.38,0.063]
[1740555877042,7.1227,140.4,140.38,0.063]
[1740555877249,0.0001,140.4,140.38,0.063]
[1740555881121,0.0001,140.4,140.38,26.723]
[1740555881326,0.0001,140.4,140.39,7.9575]
[1740555881521,0.0001,140.4,140.39,90.8575]
[1740555881747,0.063,140.41,140.39,90.8575]
[1740555884325,0.063,140.41,140.39,97.9803]
[1740555884554,0.063,140.41,140.39,84.4497]
[1740555885254,0.063,140.41,140.38,6.723]
[1740555887044,0.063,140.41,140.4,20.0]
[1740555887244,0.063,140.41,140.38,13.8464]
[1740555888060,0.063,140.41,140.4,20.0]
[1740555889038,0.063,140.41,140.4,27.1225]
[1740555889566,0.063,140.41,140.4,7.1225]
[1740555892545,0.063,140.41,140.4,7.37348]
[1740555892755,0.063,140.41,140.4,110.27348]
[1740555893360,0.063,140.41,140.4,110.0225]
[1740555898059,0.063,140.41,140.4,110.27348]
[1740555898367,0.063,140.41,140.4,110.0225]
[1740555900448,0.063,140.41,140.4,27.1225]
[1740555900760,0.063,140.41,140.39,6.62]
[1740555901465,0.063,140.41,140.38,0.063]
[1740555905059,81.1,140.4,140.38,0.063]
[1740555905265,100.00062886,140.39,140.38,0.063]
[1740555905577,81.1,140.39,140.38,0.063]
[1740555907175,81.163,140.41,140.38,0.063]
[1740555907972,0.063,140.41,140.38,7.1865]
[1740555908170,0.063,140.41,140.39,6.62]
[1740555908876,0.063,140.41,140.38,0.063]
[1740555908877,81.1,140.4,140.38,0.063]
[1740555909047,99.74964886,140.39,140.31,1.6168]
[1740555909247,82.35098,140.38,140.31,0.063]
[1740555909566,0.25098,140.36,140.31,0.063]
[1740555909741,18.64964886,140.34,140.31,0.063]
[1740555909946,7.126,140.33,140.31,0.063]
[1740555910170,81.1,140.32,140.31,0.063]
[1740555910942,81.1,140.34,140.31,0.063]
[1740555915952,7.1245,140.36,140.31,0.063]
[1740555916153,100.0163385,140.39,140.31,0.063]
[1740555916363,18.64964886,140.37,140.31,0.063]
[1740555918173,106.0323,140.38,140.31,0.063]
[1740555918382,88.2235,140.38,140.31,0.063]
[1740555919981,18.64964886,140.37,140.31,0.063]
[1740555920357,7.1245,140.36,140.31,0.063]
[1740555920566,81.1,140.35,140.31,0.063]
[1740555922276,88.2251,140.35,140.31,0.063]
[1740555922479,18.64964886,140.34,140.31,0.063]
[1740555922854,81.1,140.33,140.31,0.063]
[1740555923056,81.1,140.32,140.31,0.063]
[1740555923258,88.2251,140.35,140.31,0.063]
[1740555926188,81.1,140.37,140.31,0.063]
[1740555926366,81.1,140.37,140.32,1.6501]
[1740555927163,81.1,140.39,140.32,1.6501]
[1740555927361,81.1,140.39,140.33,0.25098]
[1740555927668,81.1,140.39,140.34,7.1255]
[1740555927877,0.063,140.41,140.34,7.1255]
[1740555928088,25.83474886,140.41,140.35,6.62]
[1740555930969,81.1,140.4,140.35,13.7449]
[1740555933090,0.063,140.41,140.36,6.1932]
[1740555934294,0.063,140.41,140.37,8.7508]
[1740555934590,0.063,140.41,140.37,1.6268]
[1740555936270,81.1,140.4,140.37,1.6268]
[1740555936472,78.6,140.4,140.37,1.6268]
[1740555937678,0.063,140.41,140.37,1.6268]
[1740555937905,0.063,140.41,140.37,8.7507]
[1740555940603,78.6,140.4,140.37,1.6268]
[1740555942721,78.6,140.39,140.37,1.6268]
[1740555942918,78.6,140.39,140.33,1.5099]
[1740555943209,78.6,140.38,140.33,1.5099]
[1740555943898,78.6,140.37,140.33,1.5099]
[1740555944610,78.6,140.37,140.33,1.5729]
[1740555945312,78.6,140.37,140.33,8.6987]
[1740555945482,78.6,140.37,140.33,1.5729]
[1740555946415,78.63,140.4,140.33,15.3189]
[1740555946655,85.7525,140.4,140.33,15.3189]
[1740555947398,18.64964886,140.39,140.33,15.3186]
[1740555947985,78.63,140.4,140.33,15.3186]
[1740555948186,85.7525,140.4,140.33,15.3186]
[1740555948590,78.63,140.4,140.33,15.3186]
[1740555949090,85.7525,140.4,140.33,15.3186]
[1740555949706,18.64964886,140.39,140.33,15.3186]
[1740555949914,18.64964886,140.39,140.33,8.6986]
[1740555950094,18.64964886,140.37,140.33,1.5729]
[1740555950522,18.64964886,140.37,140.33,0.063]
[1740555950737,38.64964886,140.34,140.33,0.063]
[1740555951240,13.7434,140.39,140.33,0.063]
[1740555951412,81.1,140.38,140.33,0.063]
[1740555951613,81.1,140.37,140.33,0.063]
[1740555952319,88.224,140.37,140.33,0.063]
[1740555952720,99.74964886,140.36,140.33,0.063]
[1740555952920,81.1,140.35,140.33,0.063]
[1740555953332,18.64964886,140.34,140.33,0.063]
[1740555953524,18.90062886,140.34,140.33,0.063]
[1740555953848,0.25098,140.34,140.33,0.063]
[1740555954014,27.52062886,140.34,140.33,0.063]
[1740555954216,34.64612886,140.34,140.33,0.0001]
[1740555954633,20.90062886,140.32,140.31,0.0001]
[1740555955026,19.90062886,140.32,140.31,0.0001]
[1740555955424,20.90062886,140.32,140.31,0.0001]
[1740555956142,19.90062886,140.32,140.31,0.0001]
[1740555956514,1.0,140.36,140.31,0.0001]
[1740555956715,6.62,140.36,140.33,0.03]
[1740555956936,13.7446,140.36,140.33,0.03]
[1740555957440,18.90062886,140.35,140.33,0.03]
[1740555957846,100.00062886,140.35,140.33,0.03]
[1740555958531,7.25099,140.34,140.33,0.01]
[1740555958841,25.77514886,140.34,140.33,0.01]
[1740555959045,81.1,140.35,140.33,0.01]
[1740555959437,81.1,140.34,140.33,0.01]
[1740555960744,106.87514886,140.34,140.33,0.01]
[1740555960935,81.1,140.34,140.33,0.01]
[1740555961750,88.2255,140.34,140.33,0.01]
[1740555962049,81.1,140.34,140.33,0.01]
[1740555963142,81.1,140.37,140.33,0.01]
[1740555963527,81.1,140.36,140.33,0.01]
[1740555968126,88.2238,140.38,140.33,0.01]
[1740555970151,81.1,140.37,140.33,0.01]
[1740555970346,81.1,140.37,140.33,6.4231]
[1740555971678,81.1,140.37,140.34,7.1255]
[1740555972249,81.1,140.37,140.33,13.549]
[1740555973763,81.1,140.37,140.33,6.4231]
[1740555973943,88.224,140.37,140.33,6.4231]